bitfinex/quotes_SOLUSD_20240909
["timestamp","ask_amount","ask_price","bid_price","bid_amount"]
[1725864639450,6.3463,128.85,128.8,6.9849463]
[1725864639949,24.96714887,128.86,128.81,20.0]
[1725864641432,24.96714887,128.86,128.82,6.9849463]
[1725864641639,24.96714887,128.86,128.83,20.0]
[1725864645454,24.96714887,128.86,128.81,20.0]
[1725864646744,24.96714887,128.86,128.82,8.53729434]
[1725864646930,24.96714887,128.86,128.83,20.0]
[1725864656039,24.96714887,128.86,128.81,20.0]
[1725864660557,45.0,128.85,128.81,20.0]
[1725864660741,24.96714887,128.86,128.81,20.0]
[1725864663965,6.3216,128.87,128.81,20.0]
[1725864664139,45.0,128.86,128.81,20.0]
[1725864664559,61.295,128.86,128.76,35.2034]
[1725864664759,6.2042,128.85,128.76,22.1883463]
[1725864665065,45.0,128.84,128.76,22.1883463]
[1725864665238,67.8122733,128.84,128.76,22.1883463]
[1725864666666,67.8122733,128.84,128.77,20.0]
[1725864668967,22.8122733,128.84,128.78,6.9849463]
[1725864669171,22.8122733,128.84,128.79,20.0]
[1725864671373,45.0,128.83,128.79,20.0]
[1725864671566,45.0,128.83,128.73,15.4893]
[1725864671773,22.1827,128.82,128.75,6.9849463]
[1725864671947,45.0,128.81,128.73,6.9849463]
[1725864673657,45.0,128.81,128.74,20.0]
[1725864675779,45.0,128.81,128.75,6.9849463]
[1725864680381,22.1827,128.82,128.79,6.9849463]
[1725864686073,22.8122733,128.84,128.74,35.3531]
[1725864686074,22.8122733,128.84,128.81,6.9849463]
[1725864686578,22.8122733,128.84,128.8,26.9849463]
[1725864686777,22.8122733,128.84,128.78,6.9849463]
[1725864687081,22.8122733,128.84,128.79,20.0]
[1725864687572,45.0,128.83,128.79,20.0]
[1725864689094,22.5689,128.82,128.79,20.0]
[1725864689301,45.0,128.81,128.79,20.0]
[1725864691464,22.5689,128.82,128.79,20.0]
[1725864693184,6.3253,128.82,128.79,20.0]
[1725864693394,22.8122733,128.84,128.8,6.9849463]
[1725864693690,21.865,128.85,128.8,6.9849463]
[1725864694668,45.0,128.84,128.8,6.9849463]
[1725864699285,45.0,128.84,128.79,20.0]
[1725864702808,45.0,128.84,128.76,6.9849463]
[1725864702979,45.0,128.84,128.78,6.9849463]
[1725864712385,45.0,128.84,128.77,20.0]
[1725864712689,45.0,128.84,128.77,6.9849463]
[1725864712891,45.0,128.84,128.78,20.0]
[1725864714296,6.2254,128.83,128.74,15.3531]
[1725864714495,6.2254,128.83,128.75,26.9849463]
[1725864714496,45.0,128.82,128.75,26.9849463]
[1725864714689,6.4556,128.8,128.72,7.73241127]
[1725864714899,45.0,128.79,128.74,6.9849463]
[1725864716204,45.0,128.79,128.76,6.9849463]
[1725864718610,45.0,128.79,128.75,20.0]
[1725864718812,45.0,128.79,128.74,6.9849463]
[1725864719114,45.0,128.79,128.75,20.0]
[1725864720300,45.0,128.79,128.76,6.9849463]
[1725864721929,6.4556,128.8,128.78,6.9849463]
[1725864722145,22.9357,128.84,128.78,6.9849463]
[1725864722419,22.9357,128.84,128.8,6.9849463]
[1725864723603,45.0,128.83,128.8,6.9849463]
[1725864725504,6.4569,128.84,128.82,6.9849463]
[1725864726305,26.60259376,128.85,128.82,6.9849463]
[1725864726717,26.60259376,128.85,128.83,20.0]
[1725864728109,45.0,128.84,128.82,6.9849463]
[1725864728316,45.0,128.84,128.83,20.0]
[1725864730031,45.0,128.84,128.8,6.9849463]
[1725864730629,45.0,128.84,128.81,20.0]
[1725864731213,26.60259376,128.85,128.82,6.9849463]
[1725864731534,45.0,128.84,128.82,6.9849463]
[1725864733524,45.0,128.84,128.81,20.0]
[1725864737717,26.60259376,128.85,128.82,6.9849463]
[1725864739217,26.60259376,128.85,128.81,20.0]
[1725864739421,45.0,128.84,128.81,20.0]
[1725864742943,45.0,128.84,128.75,35.2541]
[1725864743147,51.3277,128.84,128.78,6.9849463]
[1725864743444,51.3277,128.84,128.79,20.0]
[1725864747544,6.3277,128.84,128.79,20.0]
[1725864747841,6.3277,128.84,128.8,6.9849463]
[1725864748239,6.3277,128.84,128.79,20.0]
[1725864749147,6.3277,128.84,128.8,6.9849463]
[1725864749348,45.0,128.83,128.8,6.9849463]
[1725864751431,6.3277,128.84,128.81,20.0]
[1725864753257,45.0,128.83,128.81,20.0]
[1725864756660,6.3277,128.84,128.81,20.0]
[1725864757553,26.60259376,128.85,128.82,6.9849463]
[1725864760056,26.60259376,128.85,128.83,20.0]
[1725864760765,26.60259376,128.85,128.84,6.9849463]
[1725864764150,26.60259376,128.85,128.83,20.0]
[1725864769764,51.88603666,128.89,128.84,6.9849463]
[1725864769988,96.88603666,128.89,128.84,6.9849463]
[1725864770344,51.88603666,128.89,128.84,6.9849463]
[1725864771860,45.0,128.88,128.84,6.9849463]
[1725864773560,45.0,128.88,128.83,20.0]
[1725864774165,28.69185487,128.87,128.83,20.0]
[1725864774362,74.58891693,128.88,128.83,20.0]
[1725864782375,74.58891693,128.88,128.81,20.0]
[1725864782577,74.58891693,128.88,128.82,6.9849463]
[1725864782883,74.58891693,128.88,128.83,20.0]
[1725864783677,29.58891693,128.88,128.83,20.0]
[1725864784981,45.0,128.87,128.83,20.0]
[1725864786287,29.58891693,128.88,128.86,6.9849463]
[1725864786467,0.831162,128.92,128.87,20.0]
[1725864786669,0.831162,128.92,128.9,6.9849463]
[1725864787683,0.831162,128.92,128.91,20.0]
[1725864788264,0.831162,128.92,128.91,26.9849463]
[1725864791358,27.61206186,128.98,128.91,43.3282463]
[1725864791585,27.61206186,128.98,128.96,6.9849463]
[1725864791858,6.2798,129.02,128.96,6.9849463]
[1725864792367,0.831162,129.04,128.98,6.9849463]
[1725864792576,0.831162,129.04,129.0,6.9849463]
[1725864792890,0.831162,129.04,128.98,6.9849463]
[1725864793195,0.831162,129.04,128.99,20.0]
[1725864793560,0.831162,129.04,128.98,6.9849463]
[1725864795780,45.831162,129.04,128.98,6.9849463]
[1725864796086,0.831162,129.04,128.98,6.9849463]
[1725864808603,0.831162,129.04,129.0,6.9849463]
[1725864808777,0.831162,129.04,129.02,6.9849463]
[1725864811793,0.831162,129.04,129.01,6.9849463]
[1725864812001,0.831162,129.04,129.02,20.0]
[1725864814484,0.831162,129.04,129.01,6.9849463]
[1725864816892,0.831162,129.04,128.96,15.3762]
[1725864817099,0.831162,129.04,129.0,6.9849463]
[1725864817682,0.831162,129.04,128.97,20.0]
[1725864817888,7.284262,129.04,129.0,6.9849463]
[1725864818208,45.0,129.03,129.0,6.9849463]
[1725864827104,7.284262,129.04,129.0,6.9849463]
[1725864828486,0.831162,129.04,129.0,6.9849463]
[1725864829200,0.831162,129.04,129.02,6.9849463]
[1725864831107,0.831162,129.04,128.97,20.0]
[1725864831313,0.831162,129.04,129.01,6.9849463]
[1725864836310,0.831162,129.04,128.99,6.9849463]
[1725864836538,0.831162,129.04,129.0,20.0]
[1725864836715,16.0202,129.02,128.97,6.9849463]
[1725864836926,45.0,129.01,128.97,6.9849463]
[1725864838108,45.0,129.01,128.98,20.0]
[1725864838621,16.0202,129.02,128.98,20.0]
[1725864841718,45.0,129.01,128.98,20.0]
[1725864842106,45.0,129.01,128.93,23.24181127]
[1725864842301,45.0,129.01,128.94,6.9849463]
[1725864842498,17.48166562,129.0,128.94,6.9849463]
[1725864842726,45.0,128.99,128.95,20.0]
[1725864843509,6.6091,128.98,128.89,23.17341127]
[1725864843739,45.0,128.97,128.91,6.9849463]
[1725864845136,45.0,128.97,128.92,20.0]
[1725864846513,6.6091,128.98,128.93,6.9849463]
[1725864846715,6.6091,128.98,128.95,6.9849463]
[1725864848026,17.48166562,129.0,128.95,6.9849463]
[1725864848719,17.48166562,129.0,128.96,20.0]
[1725864850645,6.3758,129.01,128.96,20.0]
[1725864850816,45.0,129.0,128.97,6.9849463]
[1725864851743,24.35277708,129.04,128.99,6.9849463]
[1725864855133,45.0,129.03,128.99,6.9849463]
[1725864860942,0.831162,129.04,128.99,23.2837463]
[1725864861128,0.831162,129.04,129.01,6.9849463]
[1725864861329,0.831162,129.04,129.02,20.0]
[1725864861828,0.831162,129.04,128.99,23.2837463]
[1725864862161,0.831162,129.04,128.97,6.0358]
[1725864862162,0.831162,129.04,129.0,20.0]
[1725864862349,0.831162,129.04,128.98,6.9849463]
[1725864862550,0.831162,129.04,128.99,20.0]
[1725864869233,6.526,129.03,128.97,26.9849463]
[1725864869533,45.0,129.02,128.97,26.9849463]
[1725864873934,45.0,129.02,128.95,6.9849463]
[1725864875529,45.0,129.02,128.96,20.0]
[1725864875827,45.0,129.02,128.96,19.5]
[1725864879347,52.7508,129.02,128.9,23.31296003]
[1725864879681,52.7508,129.02,128.88,1.35053117]
[1725864879682,16.3756,128.99,128.88,1.35053117]
[1725864879955,51.2826,128.98,128.89,6.9849463]
[1725864880425,51.2826,128.98,128.87,22.5657463]
[1725864880631,21.8135,128.96,128.85,23.31296003]
[1725864880938,45.0,128.95,128.87,6.9849463]
[1725864881252,45.0,128.95,128.88,20.0]
[1725864881751,45.0,128.95,128.89,6.9849463]
[1725864881947,45.0,128.95,128.9,20.0]
[1725864883543,21.8135,128.96,128.9,20.0]
[1725864885730,45.0,128.95,128.89,6.9849463]
[1725864885930,45.0,128.95,128.9,20.0]
[1725864888439,45.0,128.95,128.87,6.9849463]
[1725864888636,45.0,128.95,128.88,20.0]
[1725864888849,45.0,128.95,128.85,7.73216003]
[1725864888850,6.5093,128.94,128.85,7.73216003]
[1725864889034,15.7415,128.93,128.84,6.9849463]
[1725864889352,45.0,128.92,128.84,6.9849463]
[1725864889850,45.0,128.92,128.82,1.35166496]
[1725864890155,45.0,128.92,128.84,6.9849463]
[1725864891148,45.0,128.92,128.85,20.0]
[1725864892037,6.1914,128.91,128.85,20.0]
[1725864892243,45.0,128.9,128.85,20.0]
[1725864892444,45.0,128.9,128.82,8.33661126]
[1725864892641,45.0,128.9,128.83,20.0]
[1725864893241,6.1914,128.88,128.8,6.9849463]
[1725864893437,45.0,128.87,128.8,6.9849463]
[1725864894835,45.0,128.87,128.82,6.9849463]
[1725864898562,45.0,128.87,128.81,20.0]
[1725864900671,45.0,128.87,128.8,6.9849463]
[1725864900841,45.0,128.87,128.82,6.9849463]
[1725864907377,45.0,128.87,128.77,20.0]
[1725864907378,45.0,128.87,128.84,6.9849463]
[1725864909977,45.0,128.87,128.77,20.0]
[1725864909978,45.0,128.87,128.82,6.9849463]
[1725864910183,45.0,128.87,128.83,20.0]
[1725864910679,45.0,128.87,128.81,20.0]
[1725864913097,45.0,128.87,128.76,16.5404]
[1725864913272,45.0,128.87,128.77,6.9849463]
[1725864913273,22.3614,128.86,128.77,6.9849463]
[1725864913474,45.0,128.85,128.77,6.9849463]
[1725864913984,6.5618,128.84,128.73,16.0439]
[1725864914283,45.0,128.83,128.76,6.9849463]
[1725864915670,16.6143,128.82,128.77,20.0]
[1725864915875,45.0,128.81,128.77,20.0]
[1725864918468,6.3061,128.8,128.77,20.0]
[1725864918785,45.0,128.79,128.77,20.0]
[1725864921884,45.0,128.79,128.76,6.9849463]
[1725864922188,45.0,128.79,128.77,20.0]
[1725864923490,45.0,128.79,128.74,6.9849463]
[1725864923695,45.0,128.79,128.75,20.0]
[1725864924489,45.0,128.79,128.71,7.60853995]
[1725864924694,45.0,128.79,128.73,6.9849463]
[1725864925411,15.4774,128.78,128.73,6.9849463]
[1725864925615,45.0,128.77,128.73,6.9849463]
[1725864925988,45.0,128.77,128.74,20.0]
[1725864936903,45.0,128.77,128.75,6.9849463]
[1725864937615,45.0,128.77,128.74,20.0]
[1725864947250,45.0,128.77,128.73,6.9849463]
[1725864947537,45.0,128.77,128.74,20.0]
[1725864949540,15.4774,128.78,128.74,20.0]
[1725864951541,45.0,128.77,128.74,20.0]
[1725864961247,45.0,128.77,128.72,6.9849463]
[1725864961433,45.0,128.77,128.73,20.0]
[1725864962050,45.0,128.77,128.72,20.0]
[1725864963260,45.0,128.77,128.73,6.9849463]
[1725864963468,45.0,128.77,128.74,20.0]
[1725864964743,45.0,128.77,128.72,6.9849463]
[1725864964945,45.0,128.77,128.73,20.0]
[1725864966365,45.0,128.77,128.72,6.9849463]
[1725864979251,15.4774,128.78,128.74,6.9849463]
[1725864979460,6.3061,128.8,128.67,23.86813995]
[1725864979461,6.3061,128.8,128.76,6.9849463]
[1725864980857,45.0,128.79,128.76,6.9849463]
[1725864981757,45.0,128.79,128.72,15.2912]
[1725864981979,45.0,128.79,128.78,6.9849463]
[1725864984181,45.0,128.79,128.76,6.9849463]
[1725864984384,45.0,128.79,128.74,6.9849463]
[1725864984556,45.0,128.79,128.75,20.0]
[1725864984878,45.0,128.79,128.69,15.152]
[1725864985061,45.0,128.79,128.72,6.9849463]
[1725864985656,16.0234,128.78,128.72,6.9849463]
[1725864985851,45.0,128.77,128.72,6.9849463]
[1725864986485,45.0,128.77,128.73,20.0]
[1725864992878,45.0,128.77,128.74,6.9849463]
[1725864993081,16.0234,128.78,128.74,6.9849463]
[1725864993692,6.3061,128.8,128.76,6.9849463]
[1725864994899,45.0,128.79,128.76,6.9849463]
[1725864996804,45.0,128.79,128.78,6.9849463]
[1725864998477,6.517,128.83,128.78,6.9849463]
[1725864999998,45.0,128.82,128.78,6.9849463]
[1725865001902,45.0,128.82,128.8,6.9849463]
[1725865003391,45.0,128.83,128.8,6.9849463]
[1725865003600,45.0,128.83,128.74,15.2726]
[1725865003601,45.0,128.83,128.82,6.9849463]
[1725865005895,17.45392756,128.84,128.82,6.9849463]
[1725865006112,6.6428,128.86,128.82,6.9849463]
[1725865007303,6.6428,128.86,128.81,6.9849463]
[1725865007481,6.6428,128.86,128.82,20.0]
[1725865008491,45.0,128.85,128.82,20.0]
[1725865011102,6.6428,128.86,128.82,20.0]
[1725865011402,6.6428,128.86,128.83,6.9849463]
[1725865012402,45.0,128.85,128.83,6.9849463]
[1725865014096,6.4852,128.89,128.83,6.9849463]
[1725865014295,45.0,128.88,128.83,6.9849463]
[1725865014991,45.0,128.88,128.85,6.9849463]
[1725865015706,6.4852,128.89,128.85,6.9849463]
[1725865015902,35.80795365,128.9,128.85,6.9849463]
[1725865016684,35.80795365,128.9,128.83,15.9988]
[1725865016685,19.48585365,128.9,128.87,6.9849463]
[1725865016889,19.48585365,128.9,128.89,6.9849463]
[1725865017085,6.2455,128.92,128.89,6.9849463]
[1725865019601,45.0,128.91,128.89,6.9849463]
[1725865020201,45.0,128.91,128.87,6.9849463]
[1725865020817,45.0,128.91,128.85,6.9849463]
[1725865026121,45.0,128.91,128.82,20.0]
[1725865026301,7.7583,128.9,128.83,6.9849463]
[1725865026503,45.0,128.89,128.84,20.0]
[1725865027016,45.0,128.9,128.84,20.0]
[1725865035728,45.0,128.91,128.84,20.0]
[1725865057744,45.0,128.91,128.84,36.1206]
[1725865058661,24.3467,128.93,128.85,6.9849463]
[1725865058959,20.0,128.92,128.85,6.9849463]
[1725865059158,20.0,128.93,128.85,6.9849463]
[1725865060257,45.0,128.92,128.85,6.9849463]
[1725865074360,29.5286619,128.94,128.88,16.4782]
[1725865074861,29.5286619,128.94,128.89,6.9849463]
[1725865075945,45.0,128.93,128.89,6.9849463]
[1725865077146,45.0,128.93,128.88,16.4782]
[1725865080673,45.0,128.93,128.85,15.4234]
[1725865080849,20.0,128.92,128.85,15.4234]
[1725865081163,52.7575,128.91,128.85,15.4234]
[1725865086952,7.758,128.9,128.85,15.4234]
[1725865087147,45.0,128.91,128.85,15.4234]
[1725865087148,45.0,128.89,128.85,15.4234]
[1725865087450,52.7573,128.91,128.85,15.4234]
[1725865091672,7.7573,128.91,128.85,15.4234]
[1725865093161,45.0,128.9,128.85,15.4234]
[1725865101563,45.0,128.91,128.85,15.4234]
[1725865102365,52.7574,128.91,128.85,15.4234]
[1725865103789,7.7585,128.89,128.85,15.4234]
[1725865103965,45.0,128.88,128.85,15.4234]
[1725865104169,45.0,128.88,128.82,15.3564]
[1725865106363,45.0,128.89,128.82,15.3564]
[1725865113303,52.7585,128.89,128.82,15.3564]
[1725865119500,45.0,128.89,128.82,15.3564]
[1725865122701,52.7585,128.89,128.82,15.3564]
[1725865128310,7.7593,128.88,128.82,15.3564]
[1725865128487,45.0,128.87,128.82,15.3564]
[1725865133701,52.7597,128.87,128.82,15.3564]
[1725865133906,45.0,128.87,128.82,15.3564]
[1725865136524,7.7584,128.9,128.82,15.3564]
[1725865136703,27.7586,128.89,128.82,15.3564]
[1725865137801,45.0,128.88,128.82,15.3564]
[1725865142247,29.5286619,128.94,128.89,6.1621]
[1725865142454,29.5286619,128.94,128.93,6.9849463]
[1725865142624,56.62301875,129.02,128.92,6.9849463]
[1725865142941,56.62301875,129.02,128.9,15.7153]
[1725865142942,7.7514,129.01,128.9,15.7153]
[1725865143152,34.57858267,129.0,128.91,20.0]
[1725865143647,7.7531,128.98,128.9,15.7153]
[1725865143851,33.31515678,128.97,128.9,15.7153]
[1725865144937,45.0,128.96,128.9,15.7153]
[1725865147245,32.93375254,128.95,128.9,15.7153]
[1725865147433,45.0,128.94,128.9,15.7153]
[1725865153939,32.93375254,128.95,128.9,15.7153]
[1725865154142,32.93375254,128.95,128.93,6.9849463]
[1725865154642,32.93375254,128.95,128.92,6.9849463]
[1725865155370,15.1093,129.02,128.94,6.9849463]
[1725865155669,20.0,129.01,128.92,6.9849463]
[1725865155843,20.0,129.01,128.93,20.0]
[1725865156043,46.0489926,129.02,128.93,20.0]
[1725865156657,45.0,129.01,128.93,20.0]
[1725865156966,45.0,129.01,128.94,6.9849463]
[1725865157976,74.97339715,129.01,128.93,20.0]
[1725865158179,74.97339715,129.01,128.92,20.0]
[1725865160458,29.97339715,129.01,128.95,6.9849463]
[1725865162472,45.0,129.0,128.95,6.9849463]
[1725865164782,45.0,129.0,128.93,15.1055]
[1725865164783,45.0,129.0,128.93,22.0904463]
[1725865164982,45.0,129.0,128.94,20.0]
[1725865165477,45.0,129.01,128.94,20.0]
[1725865166876,52.7514,129.01,128.94,20.0]
[1725865167177,45.0,129.01,128.93,15.1055]
[1725865167857,72.36076756,129.01,128.93,15.1055]
[1725865168477,7.7519,129.0,128.93,15.1055]
[1725865168682,45.0,128.99,128.93,15.1055]
[1725865169274,58.9869,128.99,128.93,15.1055]
[1725865169777,58.9869,128.99,128.9,15.1189]
[1725865170093,58.9869,128.99,128.91,20.0]
[1725865174981,7.7532,128.98,128.91,20.0]
[1725865175185,45.0,128.97,128.91,20.0]
[1725865176473,45.0,128.97,128.9,15.1189]
[1725865181574,6.2343,128.99,128.91,26.9849463]
[1725865183097,45.0,128.98,128.91,26.9849463]
[1725865183591,45.0,128.98,128.91,20.0]
[1725865183784,45.0,128.98,128.91,26.9849463]
[1725865192374,45.0,128.98,128.93,6.9849463]
[1725865193304,45.0,128.98,128.94,1.55089931]
[1725865193802,45.0,128.98,128.93,6.9849463]
[1725865200281,22.7341,129.02,128.95,6.9849463]
[1725865200482,6.3838,129.02,128.94,15.5198]
[1725865200706,6.3838,129.02,128.95,20.0]
[1725865201212,6.3838,129.02,128.94,15.5198]
[1725865201806,45.0,129.01,128.94,15.5198]
[1725865202710,52.7517,129.01,128.94,15.5198]
[1725865203219,61.3366,129.01,128.91,22.0683]
[1725865203515,61.3366,129.01,128.84,20.64078219]
[1725865203516,7.7542,128.97,128.88,15.6211]
[1725865203685,45.0,128.96,128.88,15.6211]
[1725865204590,45.0,128.96,128.89,20.0]
[1725865204993,45.0,128.96,128.88,22.6060463]
[1725865206398,45.0,128.96,128.89,20.0]
[1725865207305,45.0,128.97,128.89,20.0]
[1725865207490,20.0,128.96,128.89,20.0]
[1725865207692,45.0,128.95,128.89,20.0]
[1725865207913,14.237,129.0,128.9,6.9849463]
[1725865208094,14.237,129.0,128.91,20.0]
[1725865208484,6.485,129.0,128.91,20.0]
[1725865208704,6.485,129.0,128.92,6.9849463]
[1725865209188,6.485,129.0,128.93,15.5042]
[1725865211532,45.0,128.99,128.93,15.5042]
[1725865211892,24.95877469,129.01,128.94,6.9849463]
[1725865212510,24.95877469,129.01,128.96,6.9849463]
[1725865214123,24.95877469,129.01,128.95,26.9849463]
[1725865214920,45.0,129.0,128.95,26.9849463]
[1725865215915,24.95877469,129.01,128.97,6.9849463]
[1725865216100,0.831162,129.04,128.99,22.1024463]
[1725865216319,0.831162,129.04,128.99,15.1175]
[1725865219423,0.831162,129.04,128.98,20.0]
[1725865219631,6.2035,129.02,128.95,16.3924]
[1725865219834,45.0,129.01,128.95,16.3924]
[1725865228209,7.7532,128.98,128.91,15.1642]
[1725865228517,15.2717,129.0,128.87,15.1642]
[1725865228518,52.7542,128.97,128.87,15.1642]
[1725865228710,72.7542,128.97,128.87,15.1642]
[1725865228932,65.0,128.97,128.87,15.1642]
[1725865229115,68.46635746,128.97,128.88,6.9849463]
[1725865229305,23.46635746,128.97,128.94,6.9849463]
[1725865229505,24.89845993,129.03,128.94,6.9849463]
[1725865229834,6.1893,129.02,128.94,6.9849463]
[1725865230507,13.9401,129.02,128.92,23.3662463]
[1725865230707,13.9401,129.02,128.93,20.0]
[1725865230921,20.0,129.01,128.93,20.0]
[1725865231328,13.9401,129.02,128.93,20.0]
[1725865231518,65.0,129.01,128.93,20.0]
[1725865232711,65.0,129.01,128.94,6.9849463]
[1725865233432,6.1893,129.02,128.94,6.9849463]
[1725865233633,6.1893,129.02,128.95,20.0]
[1725865234432,6.1893,129.02,128.94,20.0]
[1725865235310,45.0,129.01,128.94,20.0]
[1725865239225,24.89845993,129.03,128.95,17.35703202]
[1725865239528,24.89845993,129.03,128.97,33.86073202]
[1725865239730,0.831162,129.04,128.98,20.0]
[1725865240909,45.831162,129.04,128.98,20.0]
[1725865241108,45.831162,129.04,128.97,16.5037]
[1725865247435,0.831162,129.04,128.97,40.02593202]
[1725865247622,0.831162,129.04,128.98,20.0]
[1725865261024,0.831162,129.04,128.97,16.5037]
[1725865261234,20.831162,129.04,128.97,16.5037]
[1725865261438,45.0,129.03,128.97,16.5037]
[1725865263950,45.831162,129.04,128.97,16.5037]
[1725865264157,6.2132,129.03,128.94,22.5364]
[1725865264457,65.0,129.02,128.95,20.0]
[1725865265566,65.0,129.02,128.94,16.0931]
[1725865265864,7.7519,129.0,128.9,15.4355]
[1725865266167,65.0,129.02,128.9,15.4355]
[1725865266168,72.7525,128.99,128.9,15.4355]
[1725865266387,66.2476,128.98,128.9,15.4355]
[1725865266674,66.2476,128.98,128.87,15.4355]
[1725865266675,27.7538,128.97,128.87,15.4355]
[1725865266868,45.0,128.96,128.87,15.4355]
[1725865267245,45.0,128.96,128.87,32.80835686]
[1725865267743,45.0,128.96,128.87,15.4355]
[1725865267938,20.0,128.95,128.87,15.4355]
[1725865268166,45.0,128.94,128.87,15.4355]
[1725865269076,45.0,128.94,128.88,20.0]
[1725865272169,29.0012,128.98,128.88,20.0]
[1725865272354,20.0,128.97,128.88,20.0]
[1725865273475,45.0,128.96,128.88,20.0]
[1725865273666,45.0,128.96,128.89,17.37285686]
[1725865273867,45.0,128.96,128.9,20.0]
[1725865274258,20.0,128.97,128.9,20.0]
[1725865275457,45.0,128.96,128.9,20.0]
[1725865276063,52.7545,128.96,128.87,15.4355]
[1725865276265,52.7545,128.96,128.88,20.0]
[1725865276451,20.0,128.95,128.88,20.0]
[1725865276651,45.0,128.94,128.88,20.0]
[1725865281585,45.0,128.94,128.87,15.4355]
[1725865284177,6.0663,128.93,128.85,24.33137883]
[1725865284367,45.0,128.92,128.86,20.0]
[1725865286984,45.0,128.92,128.87,24.33137883]
[1725865288770,6.3865,128.96,128.89,24.33137883]
[1725865290088,45.0,128.95,128.89,24.33137883]
[1725865291203,45.0,128.95,128.87,24.33137883]
[1725865291403,45.0,128.95,128.88,20.0]
[1725865293604,45.0,128.95,128.85,24.33137883]
[1725865293605,16.3196,128.93,128.85,24.33137883]
[1725865293896,45.0,128.92,128.86,20.0]
[1725865294099,45.0,128.92,128.85,20.0]
[1725865295877,45.0,128.92,128.85,44.33137883]
[1725865296594,6.0937,128.91,128.85,20.0]
[1725865296900,45.0,128.9,128.85,20.0]
[1725865299876,45.0,128.9,128.84,20.0]
[1725865300682,6.0937,128.91,128.84,20.0]
[1725865301903,45.0,128.9,128.84,20.0]
[1725865303787,6.0937,128.91,128.86,24.33137883]
[1725865303992,16.3196,128.93,128.86,24.33137883]
[1725865304608,16.3196,128.93,128.84,20.0]
[1725865305306,45.0,128.92,128.84,20.0]
[1725865305509,16.3196,128.93,128.87,24.33137883]
[1725865306894,45.0,128.92,128.87,24.33137883]
[1725865310416,6.4191,128.94,128.89,24.33137883]
[1725865310594,16.6521,128.96,128.9,20.0]
[1725865312792,45.0,128.95,128.9,20.0]
[1725865313919,45.0,128.95,128.87,24.33137883]
[1725865314118,45.0,128.95,128.87,44.33137883]
[1725865315590,45.0,128.95,128.89,24.33137883]
[1725865317922,45.0,128.95,128.87,44.33137883]
[1725865320126,45.0,128.95,128.88,9.72993613]
[1725865320304,45.0,128.95,128.89,20.0]
[1725865320719,45.0,128.95,128.9,9.72993613]
[1725865322029,45.0,128.95,128.89,20.0]
[1725865322203,6.5318,128.94,128.87,1.55533352]
[1725865322522,45.0,128.93,128.87,9.72993613]
[1725865322907,45.0,128.93,128.87,11.28542695]
[1725865323595,45.0,128.93,128.87,9.72993613]
[1725865323996,45.0,128.93,128.88,9.72993613]
[1725865327123,6.5318,128.94,128.9,9.72993613]
[1725865328503,45.0,128.93,128.9,9.72993613]
[1725865331029,45.0,128.93,128.89,9.72993613]
[1725865332418,45.0,128.93,128.9,1.55138045]
[1725865333029,45.0,128.93,128.89,9.72993613]
[1725865333231,45.0,128.93,128.9,1.55128994]
[1725865333411,45.0,128.93,128.89,11.28547392]